fUST/lending_fUST_20240603
["ID","MTS","AMOUNT","RATE_DAILY","PERIOD"]
[328465436,1717421439668,-500.0,0.00025468,2]
[328465438,1717421439678,-500.0,0.00025468,2]
[328465440,1717421439687,-391.3001725,0.00025468,2]
[328465442,1717421439699,-190.61508655,0.00025468,2]
[328465445,1717421439711,-500.0,0.00025468,2]
[328465447,1717421439724,-500.0,0.00025468,2]
[328465449,1717421439736,-500.0,0.00025468,2]
[328465452,1717421439748,-500.0,0.00025468,2]
[328465454,1717421439761,-305.84518145,0.00025468,2]
[328465456,1717421439774,-500.0,0.00025468,2]
[328465458,1717421439786,-500.0,0.00025468,2]
[328465460,1717421439796,-500.0,0.00025468,2]
[328465463,1717421439807,-500.0,0.00025468,2]
[328465465,1717421439818,-280.07571263,0.00025468,2]
[328465467,1717421439830,-223.73334372,0.00025468,2]
[328465469,1717421439842,-647.07093623,0.00025468,2]
[328465471,1717421439854,-500.0,0.00025468,2]
[328465474,1717421439868,-500.0,0.00025468,2]
[328465476,1717421439880,-500.0,0.00025468,2]
[328465478,1717421439892,-500.0,0.00025468,2]
[328465480,1717421439905,-500.0,0.00025468,2]
[328465482,1717421439918,-500.0,0.00025468,2]
[328465485,1717421439931,-500.0,0.00025468,2]
[328465487,1717421439943,-500.0,0.00025468,2]
[328465489,1717421439956,-500.0,0.00025468,2]
[328465491,1717421439969,-607.87692823,0.00025468,2]
[328465494,1717421439983,-500.0,0.00025468,2]
[328465496,1717421439996,-500.0,0.00025468,2]
[328465498,1717421440009,-36142.98927597,0.00025469,7]
[328465500,1717421440021,-10562.17780583,0.00025469,7]
[328465502,1717421440033,-310969.66567697,0.00025469,30]
[328465505,1717421440053,-984.46416833,0.00025469,30]
[328465714,1717421443951,-0.01452694,0.00021313,2]
[328465727,1717421444065,-499.98547306,0.00021313,2]
[328465729,1717421444077,-416.87,0.00021587,2]
[328465731,1717421444089,-5658.8,0.00025459,3]
[328465733,1717421444100,-28351.04312006,0.00025469,30]
[328465736,1717421444114,-179125.60016859,0.00025469,30]
[328465738,1717421444126,-500.0,0.00025582,2]
[328465740,1717421444136,-500.0,0.00025593,2]
[328465742,1717421444147,-500.0,0.00025593,2]
[328465744,1717421444159,-500.0,0.00025594,2]
[328465746,1717421444169,-500.0,0.00025594,2]
[328465748,1717421444179,-500.0,0.00025594,2]
[328465750,1717421444189,-500.0,0.00025594,2]
[328465753,1717421444201,-500.0,0.00025594,2]
[328465755,1717421444214,-603.92724432,0.00025594,2]
[328465757,1717421444226,-546.99,0.00025594,2]
[328465759,1717421444237,-500.0,0.00025594,2]
[328465761,1717421444248,-500.0,0.00025594,2]
[328465763,1717421444259,-500.0,0.00025594,2]
[328465766,1717421444271,-500.0,0.00025594,2]
[328465768,1717421444282,-500.0,0.00025594,2]
[328465770,1717421444292,-525.9388457,0.00025594,2]
[328465772,1717421444301,-447.1224932,0.00025594,2]
[328465774,1717421444311,-594.77495063,0.00025594,2]
[328465776,1717421444322,-500.0,0.00025594,2]
[328465778,1717421444333,-500.0,0.00025594,2]
[328465780,1717421444343,-500.0,0.00025594,2]
[328465782,1717421444354,-616.91,0.00025594,2]
[328465784,1717421444365,-303.86,0.00025594,2]
[328465787,1717421444379,-500.0,0.00025594,2]
[328465789,1717421444389,-516.03796849,0.00025594,2]
[328465791,1717421444400,-500.0,0.00025594,2]
[328465793,1717421444411,-500.0,0.00025594,2]
[328465795,1717421444422,-500.0,0.00025594,2]
[328465797,1717421444433,-165.87,0.00025594,2]
[328465799,1717421444443,-500.0,0.00025594,2]
[328465801,1717421444453,-500.0,0.00025594,2]
[328465803,1717421444463,-500.0,0.00025594,2]
[328465805,1717421444474,-500.0,0.00025594,2]
[328465808,1717421444484,-500.0,0.00025594,2]
[328465810,1717421444495,-151.0,0.00025594,2]
[328465812,1717421444506,-500.0,0.00025594,2]
[328465814,1717421444516,-176.38943016,0.00025594,2]
[328465816,1717421444527,-500.0,0.00025594,2]
[328465818,1717421444537,-500.0,0.00025594,2]
[328465820,1717421444547,-500.0,0.00025594,2]
[328465822,1717421444558,-500.0,0.00025594,2]
[328465824,1717421444569,-632.62,0.00025594,2]
[328465826,1717421444579,-162.31546849,0.00025594,2]
[328465828,1717421444590,-500.0,0.00025594,2]
[328465830,1717421444601,-500.0,0.00025594,2]
[328465833,1717421444612,-500.0,0.00025594,2]
[328465835,1717421444630,-500.0,0.00025594,2]
[328465837,1717421444640,-575.84,0.00025594,2]
[328465839,1717421444650,-538.97,0.00025594,2]
[328465841,1717421444661,-500.0,0.00025594,2]
[328465843,1717421444672,-500.0,0.00025594,2]
[328465845,1717421444682,-500.0,0.00025594,2]
[328465847,1717421444692,-596.53081417,0.00025594,2]
[328465849,1717421444702,-645.18539658,0.00025594,2]
[328465852,1717421444712,-500.0,0.00025594,2]
[328465854,1717421444722,-500.0,0.00025594,2]
[328465856,1717421444732,-500.0,0.00025594,2]
[328465858,1717421444743,-500.0,0.00025594,2]
[328465860,1717421444753,-500.0,0.00025594,2]
[328465862,1717421444763,-500.0,0.00025594,2]
[328465864,1717421444773,-647.44,0.00025594,2]
[328465866,1717421444784,-500.0,0.00025594,2]
[328465868,1717421444794,-500.0,0.00025594,2]
[328465870,1717421444804,-500.0,0.00025594,2]
[328465872,1717421444815,-500.0,0.00025594,2]
[328465874,1717421444825,-500.0,0.00025594,2]
[328465876,1717421444836,-574.49,0.00025594,2]
[328465879,1717421444846,-500.0,0.00025594,2]
[328465881,1717421444857,-500.0,0.00025594,2]
[328465882,1717421444869,-500.0,0.00025594,2]
[328465885,1717421444880,-500.0,0.00025594,2]
[328465887,1717421444890,-576.01,0.00025594,2]
[328465889,1717421444900,-423.34186812,0.00025594,2]
[328465891,1717421444910,-500.0,0.00025594,2]
[328465893,1717421444921,-500.0,0.00025594,2]
[328465895,1717421444931,-500.0,0.00025594,2]
[328465897,1717421444941,-500.0,0.00025594,2]
[328465900,1717421444952,-500.0,0.00025594,2]
[328465902,1717421444962,-500.0,0.00025594,2]
[328465904,1717421444972,-500.0,0.00025594,2]
[328465906,1717421444982,-500.0,0.00025594,2]
[328465908,1717421444992,-500.0,0.00025594,2]
[328465910,1717421445003,-543.92834315,0.00025594,2]
[328465928,1717421445169,-500.0,0.00025594,2]
[328465930,1717421445178,-500.0,0.00025594,2]
[328465932,1717421445188,-560.0,0.00025594,2]
[328465934,1717421445197,-500.0,0.00025594,2]
[328465936,1717421445206,-622.77,0.00025594,2]
[328465938,1717421445215,-500.0,0.00025594,2]
[328465940,1717421445225,-521.24327261,0.00025594,2]
[328465942,1717421445234,-250.0,0.00025594,2]
[328465944,1717421445243,-625.89,0.00025594,2]
[328465946,1717421445252,-500.0,0.00025594,2]
[328465948,1717421445261,-500.0,0.00025594,2]
[328465950,1717421445270,-500.0,0.00025594,2]
[328465952,1717421445280,-640.96,0.00025594,2]
[328465954,1717421445289,-500.0,0.00025594,2]
[328465956,1717421445298,-500.0,0.00025594,2]
[328465958,1717421445307,-500.0,0.00025594,2]
[328465960,1717421445317,-500.0,0.00025594,2]
[328465961,1717421445326,-500.0,0.00025594,2]
[328465964,1717421445335,-500.0,0.00025594,2]
[328465965,1717421445345,-500.0,0.00025594,2]
[328465967,1717421445354,-527.48,0.00025594,2]
[328465969,1717421445363,-500.0,0.00025594,2]
[328465972,1717421445376,-1000.0,0.00025594,2]
[328465974,1717421445386,-500.0,0.00025594,2]
[328465975,1717421445395,-500.0,0.00025594,2]
[328465978,1717421445405,-500.0,0.00025594,2]
[328465979,1717421445414,-500.0,0.00025594,2]
[328465982,1717421445423,-500.0,0.00025594,2]
[328465984,1717421445432,-500.0,0.00025594,2]
[328465986,1717421445442,-500.0,0.00025594,2]
[328465987,1717421445450,-634.24,0.00025594,2]
[328465989,1717421445460,-576.8916337,0.00025594,2]
[328465991,1717421445469,-338.5007288,0.00025594,2]
[328465993,1717421445478,-518.08472462,0.00025594,2]
[328465996,1717421445489,-500.0,0.00025594,2]
[328465997,1717421445498,-500.0,0.00025594,2]
[328465999,1717421445508,-500.0,0.00025594,2]
[328466001,1717421445518,-500.0,0.00025594,2]
[328466003,1717421445528,-519.04959076,0.00025594,2]
[328466005,1717421445537,-500.0,0.00025594,2]
[328466008,1717421445547,-500.0,0.00025594,2]
[328466009,1717421445556,-500.0,0.00025594,2]
[328466011,1717421445566,-500.0,0.00025594,2]
[328466013,1717421445575,-500.0,0.00025594,2]
[328466015,1717421445584,-500.0,0.00025594,2]
[328466017,1717421445593,-500.0,0.00025594,2]
[328466020,1717421445602,-500.0,0.00025594,2]
[328466021,1717421445611,-500.0,0.00025594,2]
[328466023,1717421445621,-500.0,0.00025594,2]
[328466025,1717421445630,-500.0,0.00025594,2]
[328466027,1717421445638,-573.0,0.00025594,2]
[328466029,1717421445647,-500.0,0.00025594,2]
[328466031,1717421445658,-500.0,0.00025598,2]
[328466033,1717421445667,-370.53,0.00025598,2]
[328466035,1717421445676,-500.0,0.00025598,2]
[328466038,1717421445685,-500.0,0.00025604,2]
[328466039,1717421445694,-500.0,0.00025604,2]
[328466042,1717421445704,-500.0,0.00025604,2]
[328466044,1717421445713,-500.0,0.00025604,2]
[328466045,1717421445722,-500.0,0.00025604,2]
[328466048,1717421445731,-500.0,0.00025605,2]
[328466050,1717421445741,-500.0,0.00025605,2]
[328466052,1717421445751,-500.0,0.00025605,2]
[328466054,1717421445761,-500.0,0.00025605,2]
[328466056,1717421445770,-500.0,0.00025605,2]
[328466058,1717421445779,-500.0,0.00025605,2]
[328466060,1717421445788,-500.0,0.00025605,2]
[328466061,1717421445797,-500.0,0.00025605,2]
[328466064,1717421445806,-500.0,0.00025605,2]
[328466065,1717421445816,-500.0,0.00025605,2]
[328466067,1717421445825,-231.16656322,0.00025605,2]
[328466069,1717421445834,-240.76438741,0.00025605,2]
[328466072,1717421445843,-37391.2844574,0.00025605,2]
[328466073,1717421445852,-159.40249042,0.00025605,2]
[328466076,1717421445862,-179.2244186,0.00025605,2]
[328466078,1717421445872,-207.8748653,0.00025605,2]
[328466080,1717421445882,-280.10551033,0.00025605,2]
[328466081,1717421445891,-290.46540773,0.00025605,2]
[328466083,1717421445900,-275.07948327,0.00025605,2]
[328466086,1717421445910,-2263.49557955,0.00025605,2]
[328466088,1717421445919,-9498.09241678,0.00025605,2]
[328466090,1717421445928,-960.79784753,0.00025605,2]
[328466092,1717421445937,-551.32951369,0.00025605,2]
[328466093,1717421445946,-1721.32150762,0.00025605,2]
[328466095,1717421445956,-196.64466609,0.00025605,2]
[328466097,1717421445966,-12731.53384786,0.00025605,2]
[328466099,1717421445975,-186.03670403,0.00025605,2]
[328466103,1717421445984,-156.95364019,0.00025605,2]
[328466105,1717421445993,-500.0,0.00025606,2]
[328466109,1717421446002,-500.0,0.00025606,2]
[328466111,1717421446012,-500.0,0.00025606,2]
[328466113,1717421446021,-500.0,0.00025606,2]
[328466116,1717421446030,-500.0,0.00025606,2]
[328466119,1717421446039,-500.0,0.00025606,2]
[328466122,1717421446049,-500.0,0.00025606,2]
[328466123,1717421446059,-500.0,0.00025606,2]
[328466125,1717421446069,-500.0,0.00025606,2]
[328466127,1717421446079,-500.0,0.00025606,2]
[328466129,1717421446088,-500.0,0.00025606,2]
[328466131,1717421446098,-500.0,0.00025606,2]
[328466133,1717421446109,-536.45254485,0.00025606,2]
[328466135,1717421446119,-500.0,0.00025606,2]
[328466137,1717421446128,-610.6406243,0.00025606,2]
[328466139,1717421446138,-500.0,0.00025606,2]
[328466141,1717421446147,-500.0,0.00025606,2]
[328466143,1717421446157,-500.0,0.00025606,2]
[328466146,1717421446166,-500.0,0.00025607,2]
[328466148,1717421446175,-500.0,0.00025607,2]
[328466149,1717421446184,-500.0,0.00025607,2]
[328466152,1717421446193,-500.0,0.00025607,2]
[328466155,1717421446202,-500.0,0.00025607,2]
[328466157,1717421446213,-500.0,0.00025607,2]
[328466159,1717421446224,-500.0,0.00025607,2]
[328466160,1717421446233,-500.0,0.00025607,2]
[328466162,1717421446243,-500.0,0.00025607,2]
[328466164,1717421446252,-500.0,0.00025607,2]
[328466166,1717421446261,-500.0,0.00025607,2]
[328466169,1717421446272,-500.0,0.00025607,2]
[328466171,1717421446281,-500.0,0.00025607,2]
[328466173,1717421446290,-500.0,0.00025607,2]
[328466175,1717421446300,-500.0,0.00025607,2]
[328466177,1717421446308,-500.0,0.00025607,2]
[328466179,1717421446318,-939.7733161,0.00025677,2]
[328466180,1717421446327,-1089.02,0.00025697,2]
[328466182,1717421446336,-500.0,0.00025868,2]
[328466184,1717421446345,-339.32,0.00025868,2]
[328466186,1717421446354,-500.0,0.00025868,2]
[328466188,1717421446363,-500.0,0.00025868,2]
[328466190,1717421446373,-469.00642791,0.00025868,2]
[328466192,1717421446383,-500.0,0.00025868,2]
[328466195,1717421446392,-500.0,0.00025868,2]
[328466196,1717421446401,-209.87,0.00025868,2]
[328466199,1717421446410,-241.06,0.00025868,2]
[328466200,1717421446419,-226.06,0.00025868,2]
[328466203,1717421446428,-500.0,0.00025868,2]
[328466204,1717421446437,-184.32,0.00025868,2]
[328466207,1717421446446,-500.0,0.00025872,2]
[328466209,1717421446456,-500.0,0.00025872,2]
[328466210,1717421446465,-500.0,0.00025879,2]
[328466213,1717421446475,-500.0,0.00025879,2]
[328466214,1717421446484,-525.58,0.00025879,2]
[328466217,1717421446493,-500.0,0.00025879,2]
[328466219,1717421446502,-500.0,0.00025879,2]
[328466220,1717421446511,-216.15,0.0002588,2]
[328466222,1717421446520,-1089.02,0.00025971,2]
[328466224,1717421446529,-2500.0,0.00026,2]
[328466226,1717421446538,-166.666666,0.00026,2]
[328466228,1717421446547,-500.0,0.00026142,2]
[328466230,1717421446557,-572.6,0.00026142,2]
[328466232,1717421446566,-500.0,0.00026142,2]
[328466235,1717421446575,-292.19,0.00026142,2]
[328466236,1717421446584,-312.09,0.00026142,2]
[328466238,1717421446594,-500.0,0.00026142,2]
[328466240,1717421446603,-500.0,0.00026146,2]
[328466242,1717421446612,-500.0,0.00026146,2]
[328466245,1717421446622,-212.35,0.00026153,2]
[328466246,1717421446631,-500.0,0.00026153,2]
[328466248,1717421446640,-221.84680827,0.00026153,2]
[328466250,1717421446649,-1089.02,0.00026245,2]
[328466253,1717421446658,-923.45853756,0.00026253,2]
[328466255,1717421446668,-308.8927497,0.00026254,2]
[328466256,1717421446677,-500.0,0.00026416,2]
[328466258,1717421446686,-500.0,0.00026416,2]
[328466260,1717421446695,-500.0,0.00026416,2]
[328466261,1717421446704,-500.0,0.0002642,2]
[328466262,1717421446712,-500.0,0.0002642,2]
[328466263,1717421446721,-500.0,0.00026427,2]
[328466265,1717421446730,-3000.0,0.000265,2]
[328466267,1717421446739,-3000.0,0.0002651,2]
[328466269,1717421446748,-1089.02,0.00026519,2]
[328466271,1717421446757,-3000.0,0.0002652,2]
[328466273,1717421446766,-3000.0,0.0002653,2]
[328466275,1717421446775,-3000.0,0.0002654,2]
[328466277,1717421446784,-3000.0,0.0002655,2]
[328466279,1717421446793,-3000.0,0.0002656,2]
[328466281,1717421446802,-3000.0,0.0002657,2]
[328466283,1717421446810,-500.0,0.00026579,2]
[328466286,1717421446819,-3000.0,0.0002658,2]
[328466289,1717421446828,-3000.0,0.0002659,2]
[328466291,1717421446838,-3000.0,0.000266,2]
[328466295,1717421446848,-708.91,0.000266,3]
[328466300,1717421446860,-708.91,0.000266,3]
[328466303,1717421446872,-708.91,0.000266,3]
[328466306,1717421446882,-708.91,0.000266,3]
[328466309,1717421446892,-708.91,0.000266,3]
[328466312,1717421446903,-708.91,0.000266,3]
[328466315,1717421446912,-708.91,0.000266,3]
[328466318,1717421446922,-708.91,0.000266,3]
[328466320,1717421446932,-708.91,0.000266,3]
[328466322,1717421446941,-708.91,0.000266,3]
[328466324,1717421446950,-708.91,0.000266,3]
[328466326,1717421446960,-708.91,0.000266,3]
[328466328,1717421446969,-708.91,0.000266,3]
[328466331,1717421446979,-708.91,0.000266,3]
[328466334,1717421446988,-708.91,0.000266,3]
[328466337,1717421446998,-708.91,0.000266,3]
[328466340,1717421447008,-708.91,0.000266,3]
[328466343,1717421447019,-708.91,0.000266,3]
[328466346,1717421447028,-708.91,0.000266,3]
[328466349,1717421447037,-708.91,0.000266,3]
[328466352,1717421447048,-3000.0,0.0002661,2]
[328466355,1717421447058,-3000.0,0.0002662,2]
[328466358,1717421447072,-3000.0,0.0002663,2]
[328466361,1717421447082,-3000.0,0.0002664,2]
[328466364,1717421447091,-3000.0,0.0002665,2]
[328466367,1717421447102,-3000.0,0.0002666,2]
[328466369,1717421447112,-633.2,0.00026669,2]
[328466371,1717421447123,-3000.0,0.0002667,2]
[328466373,1717421447132,-3000.0,0.0002668,2]
[328466375,1717421447141,-500.0,0.0002669,2]
[328466377,1717421447154,-500.0,0.0002669,2]
[328466380,1717421447164,-3000.0,0.0002669,2]
[328466382,1717421447173,-500.0,0.0002669,2]
[328466383,1717421447182,-500.0,0.00026694,2]
[328466385,1717421447192,-500.0,0.00026694,2]
[328466387,1717421447201,-3000.0,0.000267,2]
[328466390,1717421447210,-500.0,0.00026701,2]
[328466391,1717421447220,-3000.0,0.0002671,2]
[328466394,1717421447230,-3000.0,0.0002672,2]
[328466396,1717421447239,-3000.0,0.0002673,2]
[328466398,1717421447248,-3000.0,0.0002674,2]
[328466399,1717421447258,-3000.0,0.0002675,2]
[328466402,1717421447267,-3000.0,0.0002676,2]
[328466403,1717421447277,-3000.0,0.0002677,2]
[328466405,1717421447286,-3000.0,0.0002678,2]
[328466407,1717421447296,-3000.0,0.0002679,2]
[328466410,1717421447305,-1089.02,0.00026793,2]
[328466412,1717421447314,-153.14662067,0.00026799,2]
[328466413,1717421447324,-3000.0,0.000268,2]
[328466416,1717421447334,-3000.0,0.0002681,2]
[328466417,1717421447343,-153.14662067,0.00026811,2]
[328466419,1717421447352,-3000.0,0.0002682,2]
[328466421,1717421447362,-3000.0,0.0002683,2]
[328466423,1717421447375,-3000.0,0.0002684,2]
[328466425,1717421447384,-750.0,0.00026849,2]
[328466427,1717421447393,-3000.0,0.0002685,2]
[328466429,1717421447402,-3000.0,0.0002686,2]
[328466431,1717421447411,-3000.0,0.0002687,2]
[328466433,1717421447420,-156.21143695,0.00026875,2]
[328466435,1717421447430,-3000.0,0.0002688,2]
[328466438,1717421447440,-3000.0,0.0002689,2]
[328466440,1717421447449,-3000.0,0.000269,2]
[328466442,1717421447457,-153.14662067,0.00026902,2]
[328466444,1717421447467,-3000.0,0.0002691,2]
[328466446,1717421447476,-3000.0,0.0002692,2]
[328466448,1717421447487,-3000.0,0.0002693,2]
[328466450,1717421447497,-156.21143695,0.00026931,2]
[328466452,1717421447506,-3000.0,0.0002694,2]
[328466454,1717421447516,-4614.977055,0.0002695,2]
[328466457,1717421447526,-423.0,0.00026964,2]
[328466459,1717421447537,-500.0,0.00026964,2]
[328466461,1717421447548,-509.72,0.00026964,2]
[328466463,1717421447558,-500.0,0.00026968,2]
[328466464,1717421447568,-500.0,0.00026968,2]
[328466466,1717421447578,-500.0,0.00026975,2]
[328466468,1717421447588,-7364.09015398,0.00027,2]
[328466470,1717421447597,-153.14662067,0.00027018,2]
[328466472,1717421447607,-166.89940318,0.00027047,2]
[328466474,1717421447617,-1089.02,0.00027067,2]
[328466476,1717421447627,-289.17,0.00027238,2]
[328466478,1717421447636,-500.0,0.00027242,2]
[328466480,1717421447646,-500.0,0.00027242,2]
[328466483,1717421447656,-500.0,0.00027249,2]
[328466485,1717421447665,-156.21143695,0.00027294,2]
[328466487,1717421447675,-153.14662067,0.00027319,2]
[328466488,1717421447684,-1089.02,0.00027341,2]
[328466491,1717421447694,-156.21143695,0.00027376,2]
[328466493,1717421447703,-1952.72406085,0.00027397,2]
[328466495,1717421447712,-156.21143695,0.00027488,2]
[328466497,1717421447723,-708.91,0.000275,3]
[328466499,1717421447733,-708.91,0.000275,3]
[328466501,1717421447742,-708.91,0.000275,3]
[328466503,1717421447752,-708.91,0.000275,3]
[328466505,1717421447761,-708.91,0.000275,3]
[328466507,1717421447771,-708.91,0.000275,3]
[328466509,1717421447780,-708.91,0.000275,3]
[328466511,1717421447789,-708.91,0.000275,3]
[328466513,1717421447798,-708.91,0.000275,3]
[328466515,1717421447808,-708.91,0.000275,3]
[328466517,1717421447818,-708.91,0.000275,3]
[328466519,1717421447827,-708.91,0.000275,3]
[328466521,1717421447837,-708.91,0.000275,3]
[328466523,1717421447846,-708.91,0.000275,3]
[328466525,1717421447856,-708.91,0.000275,3]
[328466527,1717421447866,-708.91,0.000275,3]
[328466529,1717421447877,-708.91,0.000275,3]
[328466531,1717421447886,-708.91,0.000275,3]
[328466533,1717421447895,-708.91,0.000275,3]
[328466535,1717421447904,-708.91,0.000275,3]
[328466537,1717421447913,-500.0,0.00027516,2]
[328466539,1717421447923,-610.88,0.00027516,2]
[328466541,1717421447932,-500.0,0.00027523,2]
[328466543,1717421447942,-153.14662067,0.00027581,2]
[328466545,1717421447951,-156.21143695,0.00027591,2]
[328466547,1717421447961,-156.21143695,0.00027611,2]
[328466549,1717421447970,-1089.12059983,0.00027615,2]
[328466551,1717421447980,-156.21143695,0.00027625,2]
[328466553,1717421447989,-153.14662067,0.00027636,2]
[328466555,1717421447998,-153.14662067,0.00027716,2]
[328466557,1717421448007,-156.21143695,0.00027758,2]
[328466559,1717421448017,-206.560862,0.0002779,2]
[328466561,1717421448026,-500.0,0.00027797,2]
[328466563,1717421448035,-151.0,0.00027864,7]
[328466565,1717421448045,-151.0,0.00027864,7]
[328466567,1717421448055,-156.21143695,0.00027866,2]
[328466568,1717421448066,-156.21143695,0.00027954,2]
[328466570,1717421448076,-156.21143695,0.00027961,2]
[328466572,1717421448089,-9498.42860655,0.00028,2]
[328466574,1717421448098,-154.92253873,0.00028,2]
[328466576,1717421448109,-253.74198634,0.00028,2]
[328466579,1717421448120,-25518.63505366,0.00028,14]
[328466581,1717421448130,-762.0201281,0.00028,2]
[328466583,1717421448139,-457.17016607,0.00028,2]
[328466585,1717421448149,-4127.20803712,0.00028,10]
[328466587,1717421448160,-402.71628251,0.00028,2]
[328466589,1717421448169,-3987.57363517,0.00028,2]
[328466591,1717421448178,-156.21143695,0.0002805,2]
[328466592,1717421448188,-500.0,0.00028071,2]
[328466594,1717421448196,-150.87929656,0.00028215,2]
[328466596,1717421448205,-153.14662067,0.00028312,2]
[328466598,1717421448215,-311.6568079,0.00028316,2]
[328466600,1717421448224,-153.14662067,0.00028327,2]
[328466602,1717421448233,-500.0,0.00028345,2]
[328466604,1717421448242,-708.91,0.000284,3]
[328466606,1717421448251,-708.91,0.000284,3]
[328466608,1717421448261,-708.91,0.000284,3]
[328466611,1717421448270,-708.91,0.000284,3]
[328466629,1717421448435,-708.91,0.000284,3]
[328466631,1717421448446,-708.91,0.000284,3]
[328466633,1717421448455,-708.91,0.000284,3]
[328466635,1717421448465,-708.91,0.000284,3]
[328466637,1717421448475,-708.91,0.000284,3]
[328466639,1717421448484,-708.91,0.000284,3]
[328466641,1717421448494,-708.91,0.000284,3]
[328466643,1717421448504,-708.91,0.000284,3]
[328466645,1717421448513,-708.91,0.000284,3]
[328466647,1717421448523,-708.91,0.000284,3]
[328466650,1717421448533,-708.91,0.000284,3]
[328466651,1717421448542,-708.91,0.000284,3]
[328466654,1717421448551,-708.91,0.000284,3]
[328466656,1717421448560,-708.91,0.000284,3]
[328466657,1717421448570,-708.91,0.000284,3]
[328466660,1717421448580,-708.91,0.000284,3]
[328466662,1717421448590,-153.14662067,0.00028414,2]
[328466664,1717421448599,-151.0,0.00028432,7]
[328466666,1717421448609,-151.0,0.00028432,7]
[328466668,1717421448621,-156.21143695,0.00028531,2]
[328466670,1717421448630,-156.21143695,0.00028593,2]
[328466672,1717421448640,-330.84,0.00028619,2]
[328466674,1717421448649,-156.21143695,0.00028655,2]
[328466676,1717421448659,-301.75859313,0.00028689,4]
[328466678,1717421448668,-488.0,0.000287,2]
[328466680,1717421448677,-153.14662067,0.00028753,2]
[328466682,1717421448687,-153.14662067,0.00028787,2]
[328466684,1717421448696,-153.1232717,0.00028803,2]
[328466686,1717421448705,-153.14662067,0.0002886,2]
[328466688,1717421448714,-153.14662067,0.00028875,2]
[328466690,1717421448723,-166.89940318,0.000289,2]
[328466692,1717421448732,-1000.0,0.00028914,2]
[328466694,1717421448741,-1960.48914078,0.00028969,2]
[328466696,1717421448750,-156.21143695,0.00028996,2]
[328466698,1717421448759,-944.39208909,0.00028998,2]
[328466700,1717421448769,-155.0,0.00028998,2]
[328466702,1717421448779,-659.07112983,0.00028998,2]
[328466704,1717421448788,-1310.03494694,0.00028998,2]
[328466706,1717421448797,-154.9690062,0.00028998,2]
[328466708,1717421448807,-155.17308039,0.00028998,2]
[328466710,1717421448816,-1872.29956246,0.00028998,2]
[328466712,1717421448826,-2639.57223461,0.00028998,2]
[328466714,1717421448835,-2033.82676521,0.00028998,2]
[328466716,1717421448844,-527.75391758,0.00028998,4]
[328466718,1717421448853,-1537.53200485,0.00028998,2]
[328466720,1717421448863,-155.31391564,0.00028998,2]
[328466722,1717421448875,-1668742.79438902,0.00029,30]
[328466726,1717421448893,-15696.15241647,0.00029,30]
[328466731,1717421448941,-1454.38608714,0.00025468,10]
[328466733,1717421448951,-212.7243,0.00025468,2]
[328466735,1717421448960,-1914.66265553,0.00029,30]
[328466738,1717421448973,-527.82833493,0.00029,30]